{"text_format":"3","workbook":"xlsx","n_sheets":2,"sheets":["Seguimiento de proyecto","Configuración"],"not_rendered":{"defined_names":6},"read":"whole","date_system":"1900"}

{"sheet":"Seguimiento de proyecto","index":0,"n_rows":13,"n_cols":15,"rows_kept":13}
[null,"Seguimiento de proyecto"]
[null,null,"Porcentaje de valor superior o inferior para marca: ",{"v":0.25,"d":"25%"}]
[]
[null,"Proyecto","Categoría","Asignado a","Estimado\nInicio","Estimado \nFinalización","Trabajo estimado (en horas)","Duración estimada (en días)","Real \nInicio","Real\nFinalización","Icono de bandera para trabajo real superior o inferior (en horas)","Trabajo real (en horas)","Icono de bandera para duración real superior o inferior (en días)","Duración real (en días)","Notas"]
[null,"Proyecto 1","Categoría 1","Empleado 1",{"$f":"TODAY()-65","v":"2023-02-04"},{"$f":"TODAY()-5","v":"2023-04-05"},210,{"$f":"IF(COUNTA('Seguimiento de proyecto'!$E5,'Seguimiento de proyecto'!$F5)<>2,\"\",DAYS360('Seguimiento de proyecto'!$E5,'Seguimiento de proyecto'!$F5,FALSE))","v":61},{"$f":"TODAY()-65","v":"2023-02-04"},{"$f":"TODAY()","v":"2023-04-10"},{"$f":"IFERROR(IF(SeguimientoDeProyectos[[#This Row],[Trabajo real (en horas)]]=0,\"\",IF(ABS((SeguimientoDeProyectos[[#This Row],[Trabajo real (en horas)]]-SeguimientoDeProyectos[[#This Row],[Trabajo estimado (en horas)]])/SeguimientoDeProyectos[[#This Row],[Trabajo estimado (en horas)]])>PorcentajeMarca,1,0)),\"\")","v":1},300,{"$f":"IFERROR(IF(SeguimientoDeProyectos[[#This Row],[Duración real (en días)]]=0,\"\",IF(ABS((SeguimientoDeProyectos[[#This Row],[Duración real (en días)]]-SeguimientoDeProyectos[[#This Row],[Duración estimada (en días)]])/SeguimientoDeProyectos[[#This Row],[Duración estimada (en días)]])>PorcentajeMarca,1,0)),\"\")","v":0},{"$f":"IF(COUNTA('Seguimiento de proyecto'!$I5,'Seguimiento de proyecto'!$J5)<>2,\"\",DAYS360('Seguimiento de proyecto'!$I5,'Seguimiento de proyecto'!$J5,FALSE))","v":66}]
[null,"Proyecto 2","Categoría 2","Empleado 4",{"$f":"TODAY()-41","v":"2023-02-28"},{"$f":"TODAY()-10","v":"2023-03-31"},400,{"$f":"IF(COUNTA('Seguimiento de proyecto'!$E6,'Seguimiento de proyecto'!$F6)<>2,\"\",DAYS360('Seguimiento de proyecto'!$E6,'Seguimiento de proyecto'!$F6,FALSE))","v":30},{"$f":"TODAY()-41","v":"2023-02-28"},{"$f":"TODAY()-7","v":"2023-04-03"},{"$f":"IFERROR(IF(SeguimientoDeProyectos[[#This Row],[Trabajo real (en horas)]]=0,\"\",IF(ABS((SeguimientoDeProyectos[[#This Row],[Trabajo real (en horas)]]-SeguimientoDeProyectos[[#This Row],[Trabajo estimado (en horas)]])/SeguimientoDeProyectos[[#This Row],[Trabajo estimado (en horas)]])>PorcentajeMarca,1,0)),\"\")","v":0},390,{"$f":"IFERROR(IF(SeguimientoDeProyectos[[#This Row],[Duración real (en días)]]=0,\"\",IF(ABS((SeguimientoDeProyectos[[#This Row],[Duración real (en días)]]-SeguimientoDeProyectos[[#This Row],[Duración estimada (en días)]])/SeguimientoDeProyectos[[#This Row],[Duración estimada (en días)]])>PorcentajeMarca,1,0)),\"\")","v":0},{"$f":"IF(COUNTA('Seguimiento de proyecto'!$I6,'Seguimiento de proyecto'!$J6)<>2,\"\",DAYS360('Seguimiento de proyecto'!$I6,'Seguimiento de proyecto'!$J6,FALSE))","v":33}]
[null,"Proyecto 3","Categoría 1","Empleado 2",{"$f":"TODAY()-100","v":"2022-12-31"},{"$f":"TODAY()-40","v":"2023-03-01"},500,{"$f":"IF(COUNTA('Seguimiento de proyecto'!$E7,'Seguimiento de proyecto'!$F7)<>2,\"\",DAYS360('Seguimiento de proyecto'!$E7,'Seguimiento de proyecto'!$F7,FALSE))","v":61},{"$f":"TODAY()-100","v":"2022-12-31"},{"$f":"TODAY()-27","v":"2023-03-14"},{"$f":"IFERROR(IF(SeguimientoDeProyectos[[#This Row],[Trabajo real (en horas)]]=0,\"\",IF(ABS((SeguimientoDeProyectos[[#This Row],[Trabajo real (en horas)]]-SeguimientoDeProyectos[[#This Row],[Trabajo estimado (en horas)]])/SeguimientoDeProyectos[[#This Row],[Trabajo estimado (en horas)]])>PorcentajeMarca,1,0)),\"\")","v":0},500,{"$f":"IFERROR(IF(SeguimientoDeProyectos[[#This Row],[Duración real (en días)]]=0,\"\",IF(ABS((SeguimientoDeProyectos[[#This Row],[Duración real (en días)]]-SeguimientoDeProyectos[[#This Row],[Duración estimada (en días)]])/SeguimientoDeProyectos[[#This Row],[Duración estimada (en días)]])>PorcentajeMarca,1,0)),\"\")","v":0},{"$f":"IF(COUNTA('Seguimiento de proyecto'!$I7,'Seguimiento de proyecto'!$J7)<>2,\"\",DAYS360('Seguimiento de proyecto'!$I7,'Seguimiento de proyecto'!$J7,FALSE))","v":74}]
[null,"Proyecto 4","Categoría 2","Empleado 3",{"$f":"TODAY()-90","v":"2023-01-10"},{"$f":"TODAY()-80","v":"2023-01-20"},250,{"$f":"IF(COUNTA('Seguimiento de proyecto'!$E8,'Seguimiento de proyecto'!$F8)<>2,\"\",DAYS360('Seguimiento de proyecto'!$E8,'Seguimiento de proyecto'!$F8,FALSE))","v":10},{"$f":"TODAY()-90","v":"2023-01-10"},{"$f":"TODAY()-71","v":"2023-01-29"},{"$f":"IFERROR(IF(SeguimientoDeProyectos[[#This Row],[Trabajo real (en horas)]]=0,\"\",IF(ABS((SeguimientoDeProyectos[[#This Row],[Trabajo real (en horas)]]-SeguimientoDeProyectos[[#This Row],[Trabajo estimado (en horas)]])/SeguimientoDeProyectos[[#This Row],[Trabajo estimado (en horas)]])>PorcentajeMarca,1,0)),\"\")","v":0},276,{"$f":"IFERROR(IF(SeguimientoDeProyectos[[#This Row],[Duración real (en días)]]=0,\"\",IF(ABS((SeguimientoDeProyectos[[#This Row],[Duración real (en días)]]-SeguimientoDeProyectos[[#This Row],[Duración estimada (en días)]])/SeguimientoDeProyectos[[#This Row],[Duración estimada (en días)]])>PorcentajeMarca,1,0)),\"\")","v":1},{"$f":"IF(COUNTA('Seguimiento de proyecto'!$I8,'Seguimiento de proyecto'!$J8)<>2,\"\",DAYS360('Seguimiento de proyecto'!$I8,'Seguimiento de proyecto'!$J8,FALSE))","v":19}]
[null,"Proyecto 5","Categoría 3","Empleado 2",{"$f":"TODAY()-90","v":"2023-01-10"},{"$f":"TODAY()-50","v":"2023-02-19"},300,{"$f":"IF(COUNTA('Seguimiento de proyecto'!$E9,'Seguimiento de proyecto'!$F9)<>2,\"\",DAYS360('Seguimiento de proyecto'!$E9,'Seguimiento de proyecto'!$F9,FALSE))","v":39},{"$f":"TODAY()-90","v":"2023-01-10"},{"$f":"TODAY()-44","v":"2023-02-25"},{"$f":"IFERROR(IF(SeguimientoDeProyectos[[#This Row],[Trabajo real (en horas)]]=0,\"\",IF(ABS((SeguimientoDeProyectos[[#This Row],[Trabajo real (en horas)]]-SeguimientoDeProyectos[[#This Row],[Trabajo estimado (en horas)]])/SeguimientoDeProyectos[[#This Row],[Trabajo estimado (en horas)]])>PorcentajeMarca,1,0)),\"\")","v":0},310,{"$f":"IFERROR(IF(SeguimientoDeProyectos[[#This Row],[Duración real (en días)]]=0,\"\",IF(ABS((SeguimientoDeProyectos[[#This Row],[Duración real (en días)]]-SeguimientoDeProyectos[[#This Row],[Duración estimada (en días)]])/SeguimientoDeProyectos[[#This Row],[Duración estimada (en días)]])>PorcentajeMarca,1,0)),\"\")","v":0},{"$f":"IF(COUNTA('Seguimiento de proyecto'!$I9,'Seguimiento de proyecto'!$J9)<>2,\"\",DAYS360('Seguimiento de proyecto'!$I9,'Seguimiento de proyecto'!$J9,FALSE))","v":45}]
[null,"Proyecto 6","Categoría 4","Empleado 4",{"$f":"TODAY()-60","v":"2023-02-09"},{"$f":"TODAY()-50","v":"2023-02-19"},500,{"$f":"IF(COUNTA('Seguimiento de proyecto'!$E10,'Seguimiento de proyecto'!$F10)<>2,\"\",DAYS360('Seguimiento de proyecto'!$E10,'Seguimiento de proyecto'!$F10,FALSE))","v":10},{"$f":"TODAY()-60","v":"2023-02-09"},{"$f":"TODAY()-45","v":"2023-02-24"},{"$f":"IFERROR(IF(SeguimientoDeProyectos[[#This Row],[Trabajo real (en horas)]]=0,\"\",IF(ABS((SeguimientoDeProyectos[[#This Row],[Trabajo real (en horas)]]-SeguimientoDeProyectos[[#This Row],[Trabajo estimado (en horas)]])/SeguimientoDeProyectos[[#This Row],[Trabajo estimado (en horas)]])>PorcentajeMarca,1,0)),\"\")","v":0},510,{"$f":"IFERROR(IF(SeguimientoDeProyectos[[#This Row],[Duración real (en días)]]=0,\"\",IF(ABS((SeguimientoDeProyectos[[#This Row],[Duración real (en días)]]-SeguimientoDeProyectos[[#This Row],[Duración estimada (en días)]])/SeguimientoDeProyectos[[#This Row],[Duración estimada (en días)]])>PorcentajeMarca,1,0)),\"\")","v":1},{"$f":"IF(COUNTA('Seguimiento de proyecto'!$I10,'Seguimiento de proyecto'!$J10)<>2,\"\",DAYS360('Seguimiento de proyecto'!$I10,'Seguimiento de proyecto'!$J10,FALSE))","v":15}]
[null,"Proyecto 7","Categoría 5","Empleado 1",{"$f":"TODAY()-44","v":"2023-02-25"},{"$f":"TODAY()-20","v":"2023-03-21"},750,{"$f":"IF(COUNTA('Seguimiento de proyecto'!$E11,'Seguimiento de proyecto'!$F11)<>2,\"\",DAYS360('Seguimiento de proyecto'!$E11,'Seguimiento de proyecto'!$F11,FALSE))","v":26},{"$f":"TODAY()-44","v":"2023-02-25"},{"$f":"TODAY()-15","v":"2023-03-26"},{"$f":"IFERROR(IF(SeguimientoDeProyectos[[#This Row],[Trabajo real (en horas)]]=0,\"\",IF(ABS((SeguimientoDeProyectos[[#This Row],[Trabajo real (en horas)]]-SeguimientoDeProyectos[[#This Row],[Trabajo estimado (en horas)]])/SeguimientoDeProyectos[[#This Row],[Trabajo estimado (en horas)]])>PorcentajeMarca,1,0)),\"\")","v":0},790,{"$f":"IFERROR(IF(SeguimientoDeProyectos[[#This Row],[Duración real (en días)]]=0,\"\",IF(ABS((SeguimientoDeProyectos[[#This Row],[Duración real (en días)]]-SeguimientoDeProyectos[[#This Row],[Duración estimada (en días)]])/SeguimientoDeProyectos[[#This Row],[Duración estimada (en días)]])>PorcentajeMarca,1,0)),\"\")","v":0},{"$f":"IF(COUNTA('Seguimiento de proyecto'!$I11,'Seguimiento de proyecto'!$J11)<>2,\"\",DAYS360('Seguimiento de proyecto'!$I11,'Seguimiento de proyecto'!$J11,FALSE))","v":31}]
[null,"Proyecto 8","Categoría 2","Empleado 1",{"$f":"TODAY()-39","v":"2023-03-02"},{"$f":"TODAY()","v":"2023-04-10"},450,{"$f":"IF(COUNTA('Seguimiento de proyecto'!$E12,'Seguimiento de proyecto'!$F12)<>2,\"\",DAYS360('Seguimiento de proyecto'!$E12,'Seguimiento de proyecto'!$F12,FALSE))","v":38},{"$f":"TODAY()-45","v":"2023-02-24"},{"$f":"TODAY()-5","v":"2023-04-05"},{"$f":"IFERROR(IF(SeguimientoDeProyectos[[#This Row],[Trabajo real (en horas)]]=0,\"\",IF(ABS((SeguimientoDeProyectos[[#This Row],[Trabajo real (en horas)]]-SeguimientoDeProyectos[[#This Row],[Trabajo estimado (en horas)]])/SeguimientoDeProyectos[[#This Row],[Trabajo estimado (en horas)]])>PorcentajeMarca,1,0)),\"\")","v":0},430,{"$f":"IFERROR(IF(SeguimientoDeProyectos[[#This Row],[Duración real (en días)]]=0,\"\",IF(ABS((SeguimientoDeProyectos[[#This Row],[Duración real (en días)]]-SeguimientoDeProyectos[[#This Row],[Duración estimada (en días)]])/SeguimientoDeProyectos[[#This Row],[Duración estimada (en días)]])>PorcentajeMarca,1,0)),\"\")","v":0},{"$f":"IF(COUNTA('Seguimiento de proyecto'!$I12,'Seguimiento de proyecto'!$J12)<>2,\"\",DAYS360('Seguimiento de proyecto'!$I12,'Seguimiento de proyecto'!$J12,FALSE))","v":41}]
[null,"Proyecto 9","Categoría 4","Empleado 1","2016-02-05","2016-06-09",250,{"$f":"IF(COUNTA('Seguimiento de proyecto'!$E13,'Seguimiento de proyecto'!$F13)<>2,\"\",DAYS360('Seguimiento de proyecto'!$E13,'Seguimiento de proyecto'!$F13,FALSE))","v":124},"2016-03-05","2016-05-05",{"$f":"IFERROR(IF(SeguimientoDeProyectos[[#This Row],[Trabajo real (en horas)]]=0,\"\",IF(ABS((SeguimientoDeProyectos[[#This Row],[Trabajo real (en horas)]]-SeguimientoDeProyectos[[#This Row],[Trabajo estimado (en horas)]])/SeguimientoDeProyectos[[#This Row],[Trabajo estimado (en horas)]])>PorcentajeMarca,1,0)),\"\")","v":0},200,{"$f":"IFERROR(IF(SeguimientoDeProyectos[[#This Row],[Duración real (en días)]]=0,\"\",IF(ABS((SeguimientoDeProyectos[[#This Row],[Duración real (en días)]]-SeguimientoDeProyectos[[#This Row],[Duración estimada (en días)]])/SeguimientoDeProyectos[[#This Row],[Duración estimada (en días)]])>PorcentajeMarca,1,0)),\"\")","v":1},{"$f":"IF(COUNTA('Seguimiento de proyecto'!$I13,'Seguimiento de proyecto'!$J13)<>2,\"\",DAYS360('Seguimiento de proyecto'!$I13,'Seguimiento de proyecto'!$J13,FALSE))","v":60}]

{"sheet":"Configuración","index":1,"n_rows":10,"n_cols":3,"rows_kept":10}
[null,"Configuración"]
[]
[]
[null,"Nombre de categoría","Nombre del empleado"]
[null,"Categoría 1","Empleado 1"]
[null,"Categoría 2","Empleado 2"]
[null,"Categoría 3","Empleado 3"]
[null,"Categoría 4","Empleado 4"]
[null,"Categoría 5","Empleado 5"]
[null,"Categoría 6","Empleado 6"]